[Event "18th Charleroi Open-A 2019"]
[Site "Charleroi"]
[Date "2019.07.29"]
[Round "3.30"]
[White "Dugailliez, Guy"]
[Black "Callier, Christophe"]
[Result "1-0"]
[ECO "C30"]
[WhiteElo "2063"]
[BlackElo "1986"]
[Annotator "NA"]
[PlyCount "123"]
[EventDate "2019.07.22"]
[EventType "swiss"]
[EventCountry "BEL"]
[SourceTitle "playchess.com"]
[Source "ChessBase"]
[SourceQuality "1"]
[TimeControl "40/5400+30:1800+30"]

1. e4 {[%emt 0:00:00]} e5 {[%emt 0:07:49]} 2. f4 {[%emt 0:00:28]} Bc5 {[%emt 0:00:16]} 3. Nf3 {[%emt 0:00:41]} d6 {[%emt 0:00:04]} 4. Bc4 {[%emt 0:02:30]} Nf6 {[%emt 0:00:07]} 5. Nc3 {[%emt 0:01:47]} Nc6 {[%emt 0:00:08]} 6. d3 {[%emt 0:00:33]} a6 {[%emt 0:00:08]} 7. h3 {[%emt 0:12:13]} Na5 {[%emt 0:00:30]} 8. Bb3 {[%emt 0:10:54]} O-O {[%emt 0:02:50]} 9. Ne2 {[%emt 0:00:25]} Nxb3 {[%emt 0:00:22]} 10. axb3 {[%emt 0:00:06]} Re8 {[%emt 0:01:37]} 11. fxe5 {[%emt 0:01:54]} dxe5 {[%emt 0:00:11]} 12. Bg5 {[%emt 0:00:56]} Qd6 {[%emt 0:03:05]} 13. Qd2 {[%emt 0:03:30]} Qb6 {[%emt 0:02:59]} 14. Rf1 {[%emt 0:01:13]} Nd7 {[%emt 0:02:17]} 15. Nc3 {[%emt 0:02:43]} Bb4 {[%emt 0:04:10]} 16. Be3 {[%emt 0:01:24]} c5 {[%emt 0:00:16]} 17. Qf2 {[%emt 0:01:19]} f6 {[%emt 0:01:15]} 18. Nd2 {[%emt 0:00:52]} Bxc3 {[%emt 0:01:05]} 19. bxc3 {[%emt 0:00:16]} Qc7 {[%emt 0:00:26]} 20. g4 {[%emt 0:01:42]} b6 {[%emt 0:01:58]} 21. Nf3 {[%emt 0:01:30]} Nf8 {[%emt 0:04:47]} 22. Nh4 {[%emt 0:02:59]} Ne6 {[%emt 0:06:19]} 23. Nf5 {[%emt 0:00:59]} Rf8 {[%emt 0:01:30]} 24. g5 {[%emt 0:09:58]} Nf4 {[%emt 0:05:26]} 25. gxf6 {[%emt 0:08:38]} Rxf6 {[%emt 0:00:50]} 26. Bxf4 {[%emt 0:02:01]} exf4 {[%emt 0:01:46]} 27. Qxf4 {[%emt 0:02:04]} Qxf4 {[%emt 0:00:33]} 28. Rxf4 {[%emt 0:00:05]} Bxf5 {[%emt 0:00:34]} 29. exf5 {[%emt 0:00:20]} a5 {[%emt 0:00:22]} 30. b4 {[%emt 0:01:58]} g6 {[%emt 0:02:06]} 31. bxc5 {[%emt 0:29:32]} bxc5 {[%emt 0:00:23]} 32. Rfa4 {[%emt 0:00:00]} Rxf5 {[%emt 0:00:35]} 33. Rxa5 {[%emt 0:00:00]} Re8+ {[%emt 0:00:29]} 34. Kd2 {[%emt 0:00:00]} Rf2+ {[%emt 0:10:33]} 35. Kc1 {[%emt 0:00:00]} Rf1+ {[%emt 0:00:22]} 36. Kb2 {[%emt 0:00:00]} Rb8+ {[%emt 0:00:10]} 37. Ka2 {[%emt 0:00:00]} Rf2 {[%emt 0:00:26]} 38. Rc1 {[%emt 0:00:00]} c4 {[%emt 0:00:53]} 39. Ka3 {[%emt 0:00:00]} Rf3 {[%emt 0:02:47]} 40. Rd1 {[%emt 0:00:00]} Rxh3 {[%emt 0:00:25]} 41. Rc5 {[%emt 0:18:31]} cxd3 {[%emt 0:30:37]} 42. cxd3 {[%emt 0:00:10]} Kf7 {[%emt 0:03:54]} 43. d4 {[%emt 0:01:10]} Ke7 {[%emt 0:02:17]} 44. Rc1 {[%emt 0:06:37]} Kd6 {[%emt 0:00:53]} 45. Rc4 {[%emt 0:01:13]} Rh2 {[%emt 0:05:18]} 46. Rb4 {[%emt 0:00:39]} Rxb4 {[%emt 0:07:13]} 47. Kxb4 {[%emt 0:00:06]} g5 {[%emt 0:00:38]} 48. Rg1 {[%emt 0:02:09]} h6 {[%emt 0:00:11]} 49. c4 {[%emt 0:03:06]} Rh4 {[%emt 0:00:47]} 50. Kc3 {[%emt 0:00:34]} g4 {[%emt 0:00:16]} 51. Kd3 {[%emt 0:00:13]} h5 {[%emt 0:00:42]} 52. Ra1 {[%emt 0:01:33]} Rh3+ {[%emt 0:04:30]} 53. Ke4 {[%emt 0:00:07]} Rf3 {[%emt 0:00:33]} 54. Rh1 {[%emt 0:02:00]} Rc3 {[%emt 0:01:40]} 55. c5+ {[%emt 0:00:31]} Kc6 {[%emt 0:00:15]} 56. Rxh5 {[%emt 0:00:40]} g3 {[%emt 0:00:38]} 57. Rg5 {[%emt 0:00:25]} Ra3 {[%emt 0:01:27]} 58. Rg6+ {[%emt 0:00:35]} Kc7 {[%emt 0:00:36]} 59. d5 {[%emt 0:00:16]} Rc3 {[%emt 0:02:25]} 60. Rg7+ {[%emt 0:00:19]} Kc8 {[%emt 0:00:16]} 61. c6 {[%emt 0:00:13]} Kd8 {[%emt 0:00:36]} 62. Ke5 {[%emt 0:00:23]} 1-0

[Event "18th Charleroi Open-A 2019"]
[Site "Charleroi"]
[Date "2019.07.29"]
[Round "3.31"]
[White "Zamparo, Sergio"]
[Black "Van Doren, Bas"]
[Result "0-1"]
[ECO "C00"]
[WhiteElo "2031"]
[BlackElo "1976"]
[Annotator "NA"]
[PlyCount "144"]
[EventDate "2019.07.22"]
[EventType "swiss"]
[EventCountry "BEL"]
[SourceTitle "playchess.com"]
[Source "ChessBase"]
[SourceQuality "1"]
[TimeControl "40/5400+30:1800+30"]

1. e4 {[%emt 0:00:00]} c5 {[%emt 0:00:54]} 2. Nf3 {[%emt 0:00:15]} e6 {[%emt 0:00:07]} 3. d3 {[%emt 0:00:10]} Nc6 {[%emt 0:00:25]} 4. g3 {[%emt 0:00:08]} d5 {[%emt 0:00:10]} 5. Nbd2 {[%emt 0:00:08]} Nf6 {[%emt 0:01:28]} 6. Bg2 {[%emt 0:00:07]} Be7 {[%emt 0:00:11]} 7. O-O {[%emt 0:00:25]} O-O {[%emt 0:00:08]} 8. Re1 {[%emt 0:01:16]} b5 {[%emt 0:01:21]} 9. e5 {[%emt 0:00:31]} Nd7 {[%emt 0:00:26]} 10. h4 {[%emt 0:00:31]} a5 {[%emt 0:01:01]} 11. Nf1 {[%emt 0:00:37]} b4 {[%emt 0:08:55]} 12. Bf4 {[%emt 0:00:22]} Ba6 {[%emt 0:09:56]} 13. N1h2 {[%emt 0:14:30]} a4 {[%emt 0:02:57]} 14. a3 {[%emt 0:00:13]} bxa3 {[%emt 0:13:09]} 15. bxa3 {[%emt 0:00:10]} Rb8 {[%emt 0:03:51]} 16. Ng5 {[%emt 0:14:04]} Nd4 {[%emt 0:06:24]} 17. c3 {[%emt 0:05:37]} h6 {[%emt 0:09:40]} 18. Ngf3 {[%emt 0:12:20]} Nb3 {[%emt 0:01:52]} 19. Ra2 {[%emt 0:00:14]} Qa5 {[%emt 0:02:41]} 20. Qc2 {[%emt 0:03:53]} Qb5 {[%emt 0:06:27]} 21. Bf1 {[%emt 0:01:02]} Na5 {[%emt 0:00:16]} 22. Nd2 {[%emt 0:00:30]} Qc6 {[%emt 0:01:56]} 23. Bg2 {[%emt 0:05:51]} Qb5 {[%emt 0:07:11]} 24. Bf1 {[%emt 0:00:21]} Nb6 {[%emt 0:01:20]} 25. Rb1 {[%emt 0:07:01]} Qd7 {[%emt 0:03:04]} 26. Nhf3 {[%emt 0:01:16]} Rb7 {[%emt 0:04:12]} 27. g4 {[%emt 0:01:02]} Nc6 {[%emt 0:01:15]} 28. g5 {[%emt 0:00:27]} hxg5 {[%emt 0:02:00]} 29. Bxg5 {[%emt 0:01:51]} Bxg5 {[%emt 0:01:48]} 30. Nxg5 {[%emt 0:06:41]} d4 {[%emt 0:02:19]} 31. Nde4 {[%emt 0:01:16]} Qd5 {[%emt 0:00:52]} 32. f4 {[%emt 0:03:54]} dxc3 {[%emt 0:00:39]} 33. Qxc3 {[%emt 0:06:08]} Qxa2 {[%emt 0:00:53]} 34. Rb2 {[%emt 0:00:04]} Qa1 {[%emt 0:02:32]} 35. Qc2 {[%emt 0:04:03]} Nd4 {[%emt 0:01:52]} 36. Qg2 {[%emt 0:00:52]} Nd5 {[%emt 0:01:49]} 37. Rxb7 {[%emt 0:00:38]} Ne3 {[%emt 0:00:49]} 38. Qf2 {[%emt 0:03:52]} Ng4 {[%emt 0:00:13]} 39. Qb2 {[%emt 0:01:24]} Qe1 {[%emt 0:01:07]} 40. Rb8 {[%emt 0:01:09]} Qe3+ {[%emt 0:01:07]} 41. Kg2 {[%emt 0:34:16]} Nb3 {[%emt 0:02:54]} 42. Rxf8+ {[%emt 0:00:00]} Kxf8 {[%emt 0:00:18]} 43. Nf3 {[%emt 0:00:00]} Qxf4 {[%emt 0:01:34]} 44. Be2 {[%emt 0:00:00]} Bxd3 {[%emt 0:03:01]} 45. Nxc5 {[%emt 0:00:00]} Bxe2 {[%emt 0:08:21]} 46. Nd7+ {[%emt 0:00:00]} Ke7 {[%emt 0:08:43]} 47. Qxe2 {[%emt 0:00:00]} Ne3+ {[%emt 0:04:27]} 48. Kf2 {[%emt 0:00:00]} Nd4 {[%emt 0:02:36]} 49. Qxe3 {[%emt 0:00:00]} Qxe3+ {[%emt 0:01:05]} 50. Kxe3 {[%emt 0:00:00]} Nxf3 {[%emt 0:00:08]} 51. Nc5 {[%emt 0:00:00]} Nxe5 {[%emt 0:00:04]} 52. Nxa4 {[%emt 0:00:00]} Nc4+ {[%emt 0:00:14]} 53. Kf3 {[%emt 0:00:00]} Nxa3 {[%emt 0:00:04]} 54. Nc3 {[%emt 0:00:00]} f5 {[%emt 0:00:14]} 55. Ne2 {[%emt 0:00:00]} Kf6 {[%emt 0:00:26]} 56. Nf4 {[%emt 0:00:00]} g6 {[%emt 0:00:08]} 57. Nh3 {[%emt 0:00:00]} Nb5 {[%emt 0:01:03]} 58. Ng5 {[%emt 0:00:00]} Nd4+ {[%emt 0:01:51]} 59. Ke3 {[%emt 0:00:00]} e5 {[%emt 0:00:21]} 60. Nh7+ {[%emt 0:00:39]} Ke7 {[%emt 0:00:12]} 61. Ng5 {[%emt 0:00:35]} Ne6 {[%emt 0:00:06]} 62. Nf3 {[%emt 0:00:47]} Kf6 {[%emt 0:00:05]} 63. Nd2 {[%emt 0:02:37]} Nf4 {[%emt 0:00:26]} 64. Kf3 {[%emt 0:00:28]} Nd3 {[%emt 0:00:58]} 65. Ke3 {[%emt 0:01:29]} e4 {[%emt 0:00:13]} 66. Nc4 {[%emt 0:01:20]} Kg7 {[%emt 0:01:49]} 67. Nb6 {[%emt 0:03:36]} Kh6 {[%emt 0:00:37]} 68. Nd5 {[%emt 0:00:14]} Kh5 {[%emt 0:00:19]} 69. Ne7 {[%emt 0:00:18]} Ne5 {[%emt 0:00:07]} 70. Kf4 {[%emt 0:02:50]} Nf3 {[%emt 0:00:11]} 71. Ng8 {[%emt 0:00:35]} Nxh4 {[%emt 0:00:49]} 72. Nf6+ {[%emt 0:00:42]} Kh6 {[%emt 0:00:02]} 0-1

[Event "18th Charleroi Open-A 2019"]
[Site "Charleroi"]
[Date "2019.07.29"]
[Round "3.32"]
[White "Philippe, Denis-Emmanuel"]
[Black "Van Haelst, Raymond"]
[Result "1/2-1/2"]
[ECO "D05"]
[WhiteElo "2015"]
[BlackElo "1947"]
[Annotator "NA"]
[PlyCount "113"]
[EventDate "2019.07.22"]
[EventType "swiss"]
[EventCountry "BEL"]
[SourceTitle "playchess.com"]
[Source "ChessBase"]
[SourceQuality "1"]
[TimeControl "40/5400+30:1800+30"]

1. d4 {[%emt 0:00:00]} d5 {[%emt 0:01:22]} 2. Nf3 {[%emt 0:00:00]} e6 {[%emt 0:00:23]} 3. e3 {[%emt 0:00:27]} c5 {[%emt 0:00:53]} 4. b3 {[%emt 0:05:40]} cxd4 {[%emt 0:01:17]} 5. exd4 {[%emt 0:00:43]} Nc6 {[%emt 0:01:34]} 6. Bb2 {[%emt 0:05:08]} Nf6 {[%emt 0:01:29]} 7. Bd3 {[%emt 0:03:36]} Be7 {[%emt 0:07:18]} 8. Nbd2 {[%emt 0:03:04]} a6 {[%emt 0:08:34]} 9. O-O {[%emt 0:01:44]} O-O {[%emt 0:00:33]} 10. Re1 {[%emt 0:06:40]} b5 {[%emt 0:07:12]} 11. Ne5 {[%emt 0:05:10]} Bb7 {[%emt 0:06:00]} 12. a3 {[%emt 0:07:32]} g6 {[%emt 0:09:02]} 13. Qf3 {[%emt 0:06:19]} Nxe5 {[%emt 0:02:32]} 14. dxe5 {[%emt 0:01:19]} Nh5 {[%emt 0:03:02]} 15. Qg4 {[%emt 0:05:52]} Ng7 {[%emt 0:04:06]} 16. Nf3 {[%emt 0:04:46]} Rc8 {[%emt 0:03:31]} 17. Bc1 {[%emt 0:05:41]} f5 {[%emt 0:03:57]} 18. Qf4 {[%emt 0:02:54]} Qd7 {[%emt 0:12:21]} 19. Qh6 {[%emt 0:02:33]} d4 {[%emt 0:03:02]} 20. Ng5 {[%emt 0:05:55]} Bxg5 {[%emt 0:00:12]} 21. Qxg5 {[%emt 0:00:39]} Qd5 {[%emt 0:00:21]} 22. Bd2 {[%emt 0:02:24]} Rf7 {[%emt 0:01:09]} 23. a4 {[%emt 0:02:15]} Nh5 {[%emt 0:01:50]} 24. f3 {[%emt 0:01:44]} Rfc7 {[%emt 0:04:48]} 25. axb5 {[%emt 0:20:25]} axb5 {[%emt 0:00:12]} 26. Ra2 {[%emt 0:00:00]} Ra8 {[%emt 0:00:32]} 27. Rxa8+ Bxa8 {[%emt 0:00:06]} 28. Bb4 {[%emt 0:00:00]} Ra7 {[%emt 0:00:51]} 29. Bd6 {[%emt 0:00:00]} Kg7 {[%emt 0:01:47]} 30. Qd8 {[%emt 0:00:00]} h6 {[%emt 0:01:01]} 31. Qb8 {[%emt 0:00:00]} Ra2 {[%emt 0:05:24]} 32. Qf8+ {[%emt 0:00:00]} Kh7 {[%emt 0:00:05]} 33. Qf7+ {[%emt 0:00:00]} Ng7 {[%emt 0:00:16]} 34. Bf8 {[%emt 0:00:00]} Qb7 {[%emt 0:00:15]} 35. Qf6 {[%emt 0:00:00]} Nh5 {[%emt 0:04:21]} 36. Qxe6 {[%emt 0:01:33]} Nf4 {[%emt 0:00:23]} 37. Qe7+ {[%emt 0:00:41]} Qxe7 {[%emt 0:00:08]} 38. Bxe7 {[%emt 0:00:04]} Nxd3 {[%emt 0:00:34]} 39. cxd3 {[%emt 0:00:05]} Bd5 {[%emt 0:01:05]} 40. Bc5 {[%emt 0:02:38]} Rd2 {[%emt 0:02:55]} 41. e6 {[%emt 0:10:10]} Bc6 {[%emt 0:00:39]} 42. e7 {[%emt 0:02:25]} Be8 {[%emt 0:00:05]} 43. b4 {[%emt 0:03:39]} Rxd3 {[%emt 0:01:31]} 44. Re5 {[%emt 0:03:31]} Kg8 {[%emt 0:03:33]} 45. Kf1 {[%emt 0:03:35]} Rd2 {[%emt 0:01:37]} 46. Rd5 {[%emt 0:01:13]} d3 {[%emt 0:00:32]} 47. h4 {[%emt 0:02:24]} h5 {[%emt 0:10:44]} 48. Rd4 {[%emt 0:00:39]} Kf7 {[%emt 0:00:36]} 49. g4 {[%emt 0:00:44]} hxg4 {[%emt 0:04:48]} 50. fxg4 {[%emt 0:00:14]} Rh2 {[%emt 0:00:54]} 51. gxf5 {[%emt 0:00:48]} gxf5 {[%emt 0:00:20]} 52. Kg1 {[%emt 0:02:02]} Rh3 {[%emt 0:02:11]} 53. Kg2 {[%emt 0:00:19]} Re3 {[%emt 0:00:36]} 54. Kf2 {[%emt 0:01:34]} Rh3 {[%emt 0:01:26]} 55. Kg2 {[%emt 0:00:29]} Re3 {[%emt 0:00:13]} 56. Kf2 {[%emt 0:02:17]} Rh3 {[%emt 0:00:25]} 57. Kg2 {[%emt 0:04:56]} 1/2-1/2

[Event "18th Charleroi Open-A 2019"]
[Site "Charleroi"]
[Date "2019.07.29"]
[Round "3.34"]
[White "Dierckens, Sarah"]
[Black "Guion, Geoffrey"]
[Result "1-0"]
[ECO "C13"]
[WhiteElo "1770"]
[BlackElo "2006"]
[Annotator "NA"]
[PlyCount "69"]
[EventDate "2019.07.22"]
[EventType "swiss"]
[EventCountry "BEL"]
[SourceTitle "playchess.com"]
[Source "ChessBase"]
[SourceQuality "1"]
[TimeControl "40/5400+30:1800+30"]

1. e4 {[%emt 0:00:00]} e6 {[%emt 0:00:00]} 2. d4 {[%emt 0:00:00]} d5 {[%emt 0:00:00]} 3. Nc3 {[%emt 0:00:00]} Nf6 {[%emt 0:00:00]} 4. Bg5 {[%emt 0:00:00]} dxe4 {[%emt 0:00:01]} 5. Nxe4 {[%emt 0:01:13]} Be7 {[%emt 0:00:09]} 6. Nxf6+ {[%emt 0:01:06]} Bxf6 {[%emt 0:00:16]} 7. Bxf6 {[%emt 0:00:07]} Qxf6 {[%emt 0:00:21]} 8. Nf3 {[%emt 0:00:23]} O-O {[%emt 0:01:51]} 9. Bd3 {[%emt 0:05:06]} c5 {[%emt 0:04:55]} 10. c3 {[%emt 0:01:46]} cxd4 {[%emt 0:02:19]} 11. Nxd4 {[%emt 0:00:11]} a6 {[%emt 0:00:53]} 12. O-O {[%emt 0:01:30]} e5 {[%emt 0:00:46]} 13. Nf3 {[%emt 0:03:05]} Bg4 {[%emt 0:00:58]} 14. Be4 {[%emt 0:00:11]} Nc6 {[%emt 0:01:43]} 15. Qa4 {[%emt 0:03:01]} Bd7 {[%emt 0:02:58]} 16. Rfe1 {[%emt 0:02:28]} Rfe8 {[%emt 0:00:37]} 17. Rad1 {[%emt 0:01:17]} Rad8 {[%emt 0:00:20]} 18. Qb3 {[%emt 0:03:04]} b5 {[%emt 0:03:11]} 19. Bxc6 {[%emt 0:04:23]} Bxc6 {[%emt 0:01:25]} 20. Rxd8 {[%emt 0:01:46]} Rxd8 {[%emt 0:06:09]} 21. Nxe5 {[%emt 0:04:11]} Rd2 {[%emt 0:21:07]} 22. Nf3 {[%emt 0:03:07]} Rd8 {[%emt 0:02:32]} 23. Nd4 {[%emt 0:01:14]} Bb7 {[%emt 0:03:31]} 24. f3 {[%emt 0:06:39]} g6 {[%emt 0:01:07]} 25. a4 {[%emt 0:04:02]} Bd5 {[%emt 0:08:17]} 26. Qb4 {[%emt 0:06:06]} bxa4 {[%emt 0:03:03]} 27. Qxa4 {[%emt 0:00:28]} Kg7 {[%emt 0:01:25]} 28. Qa5 {[%emt 0:02:14]} Rd6 {[%emt 0:01:41]} 29. Qc5 {[%emt 0:03:33]} Bb7 {[%emt 0:02:45]} 30. Re8 {[%emt 0:06:50]} Qf4 {[%emt 0:02:32]} 31. Re7 {[%emt 0:15:28]} Qc1+ {[%emt 0:03:51]} 32. Kf2 {[%emt 0:00:04]} Qxb2+ {[%emt 0:01:26]} 33. Kg3 {[%emt 0:00:13]} Rd5 {[%emt 0:03:57]} 34. Ne6+ {[%emt 0:06:46]} Kf6 {[%emt 0:02:17]} 35. Qc7 {[%emt 0:00:58]} 1-0

[Event "18th Charleroi Open-A 2019"]
[Site "Charleroi"]
[Date "2019.07.29"]
[Round "4.2"]
[White "Lugovskoy, Maxim"]
[Black "Maerevoet, Sim"]
[Result "1/2-1/2"]
[ECO "B51"]
[WhiteElo "2425"]
[BlackElo "2321"]
[Annotator "NA"]
[PlyCount "65"]
[EventDate "2019.07.22"]
[EventType "swiss"]
[EventCountry "BEL"]
[SourceTitle "playchess.com"]
[Source "ChessBase"]
[SourceQuality "1"]
[TimeControl "40/5400+30:1800+30"]

1. e4 {[%emt 0:00:00]} c5 {[%emt 0:00:00]} 2. Nf3 {[%emt 0:00:00]} d6 {[%emt 0:00:00]} 3. Bb5+ {[%emt 0:00:00]} Nd7 {[%emt 0:01:06]} 4. d4 {[%emt 0:00:00]} cxd4 {[%emt 0:01:27]} 5. Qxd4 {[%emt 0:00:04]} a6 {[%emt 0:00:44]} 6. Bxd7+ {[%emt 0:00:04]} Bxd7 {[%emt 0:00:05]} 7. c4 {[%emt 0:00:08]} e5 {[%emt 0:06:31]} 8. Qd3 {[%emt 0:00:03]} Rc8 {[%emt 0:00:06]} 9. Nc3 {[%emt 0:01:13]} Qc7 {[%emt 0:07:48]} 10. b3 {[%emt 0:00:15]} b5 {[%emt 0:00:12]} 11. Nd5 {[%emt 0:00:36]} Qc5 {[%emt 0:00:59]} 12. Nd2 {[%emt 0:00:00]} Ne7 {[%emt 0:10:23]} 13. O-O {[%emt 0:00:00]} Nxd5 {[%emt 0:01:16]} 14. exd5 {[%emt 0:00:00]} Be7 {[%emt 0:01:26]} 15. Ne4 {[%emt 0:16:39]} bxc4 {[%emt 0:24:41]} 16. Qg3 {[%emt 0:04:33]} Qxd5 {[%emt 0:01:08]} 17. Qxg7 {[%emt 0:00:44]} Rf8 {[%emt 0:00:15]} 18. Qxh7 {[%emt 0:11:18]} Bc6 {[%emt 0:01:13]} 19. Re1 {[%emt 0:00:39]} f5 {[%emt 0:03:54]} 20. bxc4 {[%emt 0:06:24]} Qxc4 {[%emt 0:07:09]} 21. Ng3 {[%emt 0:15:45]} f4 {[%emt 0:10:40]} 22. Nf5 {[%emt 0:02:37]} Qf7 {[%emt 0:01:54]} 23. Ng7+ {[%emt 0:05:27]} Kd8 {[%emt 0:00:45]} 24. Bd2 {[%emt 0:00:02]} Rg8 {[%emt 0:04:40]} 25. Ba5+ {[%emt 0:00:30]} Rc7 {[%emt 0:00:07]} 26. Bxc7+ {[%emt 0:10:36]} Kxc7 {[%emt 0:00:09]} 27. Rac1 {[%emt 0:00:12]} Qxg7 {[%emt 0:08:01]} 28. Rxc6+ {[%emt 0:00:03]} Kxc6 {[%emt 0:00:07]} 29. Rc1+ {[%emt 0:00:03]} Kd5 {[%emt 0:00:13]} 30. Qh3 {[%emt 0:00:02]} e4 {[%emt 0:02:02]} 31. Qf5+ {[%emt 0:10:02]} Qe5 {[%emt 0:00:44]} 32. Qd7 {[%emt 0:01:41]} Qg5 {[%emt 0:00:20]} 33. g3 {[%emt 0:02:08]} 1/2-1/2

[Event "18th Charleroi Open-A 2019"]
[Site "Charleroi"]
[Date "2019.07.29"]
[Round "4.3"]
[White "Gurevich, Mikhail"]
[Black "Hoffmeister, Frank"]
[Result "1-0"]
[ECO "D45"]
[WhiteElo "2587"]
[BlackElo "2187"]
[Annotator "RC"]
[PlyCount "95"]
[EventDate "2019.07.22"]
[EventType "swiss"]
[EventCountry "BEL"]
[TimeControl "40/5400+30:1800+30"]

1. c4 {[%emt 0:03:01]} c6 {[%emt 0:00:00]} 2. Nf3 {[%emt 0:00:04]} d5 {[%emt 0:00:00]} 3. e3 {[%emt 0:00:03]} Nf6 {[%emt 0:00:00]} 4. Nc3 {[%emt 0:00:40]} e6 {[%emt 0:02:29]} 5. Qc2 {[%emt 0:00:10]} Nbd7 {[%emt 0:00:53]} 6. b3 {[%emt 0:00:37]} Bd6 {[%emt 0:00:13]} 7. Bb2 {[%emt 0:00:12]} a6 {[%emt 0:00:23]} 8. d4 {[%emt 0:00:11]} O-O {[%emt 0:00:30]} 9. Be2 {[%emt 0:00:13]} b5 {[%emt 0:09:46]} 10. O-O {[%emt 0:02:42]} Bb7 {[%emt 0:00:40]} 11. e4 {[%emt 0:10:04]} b4 {[%emt 0:10:21]} 12. e5 {[%emt 0:00:31]} bxc3 {[%emt 0:00:08]} 13. Bxc3 {[%emt 0:00:05]} Be7 {[%emt 0:12:34]} 14. exf6 {[%emt 0:02:05]} Nxf6 {[%emt 0:01:00]} 15. Rad1 {[%emt 0:06:28]} Ne4 {[%emt 0:03:45]} 16. Bb2 {[%emt 0:01:31]} c5 {[%emt 0:04:57]} 17. dxc5 {[%emt 0:03:27]} Bxc5 {[%emt 0:00:06]} 18. Bd3 {[%emt 0:01:19]} Qe7 {[%emt 0:02:19]} 19. cxd5 {[%emt 0:11:51]} exd5 {[%emt 0:00:08]} 20. Qc1 {[%emt 0:00:13]} f5 {[%emt 0:14:23]} 21. Bd4 {[%emt 0:10:31]} Bb4 {[%emt 0:16:17]} 22. Qa1 {[%emt 0:02:34]} Rac8 {[%emt 0:00:16]} 23. Rc1 {[%emt 0:01:06]} Ba3 {[%emt 0:01:10]} 24. Rxc8 {[%emt 0:01:41]} Rxc8 {[%emt 0:00:01]} 25. Qe1 {[%emt 0:00:40]} Qb4 {[%emt 0:05:42]} 26. Qe3 {[%emt 0:02:39]} Re8 {[%emt 0:04:46]} 27. Ba1 {[%emt 0:05:04]} Qc5 {[%emt 0:01:15]} 28. Nd4 {[%emt 0:01:27]} Qf8 {[%emt 0:00:54]} 29. Qf4 {[%emt 0:00:42]} g6 {[%emt 0:03:06]} 30. f3 {[%emt 0:04:01]} Bd6 {[%emt 0:00:32]} 31. Qh4 {[%emt 0:06:44]} Be7 {[%emt 0:01:25]} 32. Qe1 {[%emt 0:02:17]} Bb4 {[%emt 0:00:52]} 33. Qh4 {[%emt 0:08:17]} Be7 {[%emt 0:00:28]} 34. Qh3 {[%emt 0:00:04]} Ng5 {[%emt 0:02:49]} 35. Qg3 {[%emt 0:00:35]} f4 {[%emt 0:00:18]} 36. Qf2 {[%emt 0:01:04]} Bc5 {[%emt 0:00:05]} 37. Kh1 {[%emt 0:00:54]} Re3 {[%emt 0:02:51]} 38. Qd2 {[%emt 0:00:19]} Bb4 {[%emt 0:00:57]} 39. Qd1 {[%emt 0:00:08]} Qe7 {[%emt 0:00:14]} 40. Nc2 {[%emt 0:00:11]} Re6 {[%emt 0:00:31]} 41. Nxb4 {[%emt 0:34:17]} Qxb4 {[%emt 0:30:01]} 42. Qc1 {[%emt 0:01:32]} Qf8 {[%emt 0:00:00]} 43. Qc3 {[%emt 0:00:00]} Nf7 {[%emt 0:00:00]} 44. Qd4 {[%emt 0:00:00]} Re3 {[%emt 0:00:00]} 45. Rd1 {[%emt 0:00:00]} Ne5 {[%emt 0:00:00]} 46. Bf1 {[%emt 0:00:00]} a5 {[%emt 0:00:00]} 47. Qb6 {[%emt 0:00:00]} Qb4 {[%emt 0:00:00]} 48. Qc7 {[%emt 0:00:00]} 1-0

[Event "18th Charleroi Open-A 2019"]
[Site "Charleroi"]
[Date "2019.07.29"]
[Round "4.4"]
[White "Verheyen, Olivier"]
[Black "Gijsen, Stief"]
[Result "1/2-1/2"]
[ECO "C45"]
[WhiteElo "2200"]
[BlackElo "2227"]
[Annotator "NA"]
[PlyCount "66"]
[EventDate "2019.07.22"]
[EventType "swiss"]
[EventCountry "BEL"]
[SourceTitle "playchess.com"]
[Source "ChessBase"]
[SourceQuality "1"]
[TimeControl "40/5400+30:1800+30"]

1. e4 {[%emt 0:00:00]} e5 {[%emt 0:00:00]} 2. Nf3 {[%emt 0:00:00]} Nc6 {[%emt 0:00:00]} 3. d4 {[%emt 0:00:00]} exd4 {[%emt 0:00:00]} 4. Nxd4 {[%emt 0:00:00]} Nf6 {[%emt 0:00:00]} 5. Nxc6 {[%emt 0:00:00]} bxc6 {[%emt 0:00:00]} 6. e5 {[%emt 0:00:00]} Qe7 {[%emt 0:00:02]} 7. Qe2 {[%emt 0:00:00]} Nd5 {[%emt 0:00:04]} 8. c4 {[%emt 0:00:01]} Nb6 {[%emt 0:01:09]} 9. Nc3 {[%emt 0:00:21]} Ba6 {[%emt 0:03:36]} 10. b3 {[%emt 0:04:28]} O-O-O {[%emt 0:02:29]} 11. Bb2 {[%emt 0:03:59]} Re8 {[%emt 0:01:21]} 12. O-O-O {[%emt 0:09:59]} Qg5+ {[%emt 0:20:38]} 13. Kb1 {[%emt 0:10:05]} f6 {[%emt 0:00:19]} 14. Qc2 {[%emt 0:08:38]} fxe5 {[%emt 0:11:24]} 15. c5 {[%emt 0:03:12]} Bxf1 {[%emt 0:00:05]} 16. cxb6 {[%emt 0:00:13]} axb6 {[%emt 0:06:53]} 17. Rhxf1 {[%emt 0:13:13]} Qxg2 {[%emt 0:00:06]} 18. Rg1 {[%emt 0:18:59]} Qxh2 {[%emt 0:06:26]} 19. Qf5 {[%emt 0:00:54]} Re6 {[%emt 0:05:24]} 20. Ne4 {[%emt 0:13:53]} Qf4 {[%emt 0:07:19]} 21. Qxf4 {[%emt 0:00:17]} exf4 {[%emt 0:00:03]} 22. f3 {[%emt 0:00:27]} Rg6 {[%emt 0:05:12]} 23. Rxg6 {[%emt 0:09:34]} hxg6 {[%emt 0:00:04]} 24. Rg1 {[%emt 0:00:08]} d5 {[%emt 0:09:12]} 25. Ng5 {[%emt 0:01:01]} Bc5 {[%emt 0:00:51]} 26. Rg2 {[%emt 0:00:44]} Rh1+ {[%emt 0:04:21]} 27. Kc2 {[%emt 0:00:28]} Be3 {[%emt 0:01:59]} 28. Ne6 {[%emt 0:02:01]} Rf1 {[%emt 0:03:16]} 29. Rxg6 {[%emt 0:00:50]} Rxf3 {[%emt 0:00:12]} 30. Rxg7 {[%emt 0:00:23]} Rf2+ {[%emt 0:00:12]} 31. Kb1 {[%emt 0:00:07]} Rf1+ {[%emt 0:00:20]} 32. Kc2 {[%emt 0:00:04]} Rf2+ {[%emt 0:05:06]} 33. Kb1 {[%emt 0:00:04]} Rf1+ {[%emt 0:00:34]} 1/2-1/2